Workbook

Sheet Overview

Sheet All Data
A1: Maching Learning Example in MS Excel
A2: Please only change cells with WHITE backgrounds. Then RUN SOLVER. The others coloured cells containg formulae. This contaings macros so please save-as and enable them GOOD LUCK
D3: Hidden Layers Data
A4: Training Data Points Angle in Degs | B4: Expected O/P Sine | C4: Angle in Radians | D4: n1h1 | E4: n2h1 | F4: n1h2 | G4: n2h2 | H4: Output Sine by Network | J4: Output Accuracy of Network
A5: 0.00 | B5: =SIN(C5) -> 0.00000000 | C5: =RADIANS(A5) -> 0 | D5: =sigmoid(C5*N$8-$P$8) -> 0.4996986426 | E5: =sigmoid(D5*O$8-$P$8) -> 0.5531188505 | F5: =sigmoid(SUMPRODUCT(D5*N$11+E5*$O$11)-$P$11) -> 0.1504561062 | G5: =sigmoid(SUMPRODUCT(D5*E5,O$11*$O$14)-$P$11) -> 0.08808078213 | H5: =SUMPRODUCT(F5:G5,$N$17:$O$17)-$P$17 -> -0.08695969 | J5: =SUMXMY2(B5:B9,H5:H9) -> 0.166163068226 | N5: Hidden Layers Weights and Bias
A6: 10.00 | B6: =SIN(C6) -> 0.17364818 | C6: =RADIANS(A6) -> 0.1745329252 | D6: =sigmoid(C6*N$8-$P$8) -> 0.5944287906 | E6: =sigmoid(D6*O$8-$P$8) -> 0.5631463369 | F6: =sigmoid(SUMPRODUCT(D6*N$11+E6*$O$11)-$P$11) -> 0.165586987 | G6: =sigmoid(SUMPRODUCT(D6*E6,O$11*$O$14)-$P$11) -> 0.08808078213 | H6: =SUMPRODUCT(F6:G6,$N$17:$O$17)-$P$17 -> 0.06200672517
A7: 45.00 | B7: 0.70710678 | C7: =RADIANS(A7) -> 0.7853981634 | D7: =sigmoid(C7*N$8-$P$8) -> 0.848718995 | E7: 0.589788286 | F7: =sigmoid(SUMPRODUCT(D7*N$11+E7*$O$11)-$P$11) -> 0.2121917746 | G7: =sigmoid(SUMPRODUCT(D7*E7,O$11*$O$14)-$P$11) -> 0.08808078213 | H7: 0.5208397749 | N7: W1 | O7: W2 | P7: b1
A8: 70.00 | B8: 0.93969262 | C8: 1.221730476 | D8: 0.9360378139 | E8: 0.5988246228 | F8: =sigmoid(SUMPRODUCT(D8*N$11+E8*$O$11)-$P$11) -> 0.2302547478 | G8: =sigmoid(SUMPRODUCT(D8*E8,O$11*$O$14)-$P$11) -> 0.08808078213 | H8: =SUMPRODUCT(F8:G8,$N$17:$O$17)-$P$17 -> 0.69867320 | N8: 2.19734982 | O8: 0.42923001 | P8: 0.00120543
A9: 90.00 | B9: 1.00000000 | C9: 1.570796327 | D9: 0.9692425781 | E9: 0.6022436754 | F9: =sigmoid(SUMPRODUCT(D9*N$11+E9*$O$11)-$P$11) -> 0.2374000985 | G9: =sigmoid(SUMPRODUCT(D9*E9,O$11*$O$14)-$P$11) -> 0.08808078213 | H9: 0.769020546
N10: W3 | O10: W4 | P10: b2
N11: 1.20000000 | O11: 0.01198738 | P11: 2.33729704
B12: Calculated/Learnt Values of Hidden Layers Fed Back into Neural Network
A13: Testing Data | B13: Sine of angle | C13: Angle in Radians | D13: n1h1 | E13: n2h1 | F13: n1h2 | G13: n2h2 | H13: Output by Network | N13: W5 | O13: W6
A14: 0 | B14: =SIN(C14) -> 0 | C14: =RADIANS(A14) -> 0 | D14: =sigmoid(C14*N$8-$P$8) -> 0.4996986426 | E14: =sigmoid(D14*O$8-$P$8) -> 0.5531188505 | F14: =sigmoid(SUMPRODUCT(D14*N$11+E14*$O$11)-$P$11) -> 0.1504561062 | G14: =sigmoid(SUMPRODUCT(D14*E14,O$11*$O$14)-$P$11) -> 0.08808078213 | H14: =SUMPRODUCT(F14:G14,$N$17:$O$17)-$P$17 -> -0.08695969189 | N14: 0.00000000 | O14: 0.00000000
A15: 10 | B15: =SIN(C15) -> 0.1736481777 | C15: =RADIANS(A15) -> 0.1745329252 | D15: =sigmoid(C15*N$8-$P$8) -> 0.5944287906 | E15: =sigmoid(D15*O$8-$P$8) -> 0.5631463369 | F15: =sigmoid(SUMPRODUCT(D15*N$11+E15*$O$11)-$P$11) -> 0.165586987 | G15: =sigmoid(SUMPRODUCT(D15*E15,O$11*$O$14)-$P$11) -> 0.08808078213 | H15: =SUMPRODUCT(F15:G15,$N$17:$O$17)-$P$17 -> 0.06200672517
A16: 20 | B16: =SIN(C16) -> 0.3420201433 | C16: =RADIANS(A16) -> 0.3490658504 | D16: =sigmoid(C16*N$8-$P$8) -> 0.6826147594 | E16: =sigmoid(D16*O$8-$P$8) -> 0.5724351082 | F16: =sigmoid(SUMPRODUCT(D16*N$11+E16*$O$11)-$P$11) -> 0.1807466085 | G16: =sigmoid(SUMPRODUCT(D16*E16,O$11*$O$14)-$P$11) -> 0.08808078213 | H16: =SUMPRODUCT(F16:G16,$N$17:$O$17)-$P$17 -> 0.21125610 | N16: W7 | O16: W8 | P16: b3
A17: 30 | B17: 0.5 | C17: =RADIANS(A17) -> 0.5235987756 | D17: =sigmoid(C17*N$8-$P$8) -> 0.7593874657 | E17: =sigmoid(D17*O$8-$P$8) -> 0.5804805632 | F17: =sigmoid(SUMPRODUCT(D17*N$11+E17*$O$11)-$P$11) -> 0.1948068489 | G17: =sigmoid(SUMPRODUCT(D17*E17,O$11*$O$14)-$P$11) -> 0.08808078213 | H17: =SUMPRODUCT(F17:G17,$N$17:$O$17)-$P$17 -> 0.34968186 | N17: 9.84519131 | O17: 0.00000000 | P17: 1.56822884
A18: 45 | B18: =SIN(C18) -> 0.7071067812 | C18: 0.7853981634 | D18: =sigmoid(C18*N$8-$P$8) -> 0.848718995 | E18: 0.589788286 | F18: 0.2121917746 | G18: 0.08808078213 | H18: =SUMPRODUCT(F18:G18,$N$17:$O$17)-$P$17 -> 0.5208397749
A19: 50 | B19: =SIN(C19) -> 0.7660444431 | C19: 0.872664626 | D19: 0.8717301902 | E19: 0.5921757946 | F19: 0.2168493553 | G19: 0.08808078213 | H19: =SUMPRODUCT(F19:G19,$N$17:$O$17)-$P$17 -> 0.56669455
A20: 60 | B20: =SIN(C20) -> 0.8660254038 | C20: 1.047197551 | D20: 0.9088649398 | E20: 0.5960194765 | F20: 0.2245205229 | G20: 0.08808078213 | H20: =SUMPRODUCT(F20:G20,$N$17:$O$17)-$P$17 -> 0.6422186605
A21: 70 | B21: 0.9396926208 | C21: 1.221730476 | D21: 0.9360378139 | E21: 0.5988246228 | F21: 0.2302547478 | G21: 0.08808078213 | H21: =SUMPRODUCT(F21:G21,$N$17:$O$17)-$P$17 -> 0.6986732014
A22: 80 | B22: 0.984807753 | C22: 1.396263402 | D22: 0.9555054475 | E22: 0.6008303698 | F22: 0.2344256027 | G22: 0.08808078213 | H22: =SUMPRODUCT(F22:G22,$N$17:$O$17)-$P$17 -> 0.7397360663
A23: 90 | B23: 1 | C23: 1.570796327 | D23: 0.9692425781 | E23: 0.6022436754 | F23: 0.2374000985 | G23: 0.08808078213 | H23: 0.769020546
A48: andrewainger@hotmail.com
